[Event "*** SCC Grand Prix: Titled Tuesday Blitz"]
[Site "Chess.com"]
[Date "2020.08.11"]
[Round "3"]
[White "Ural_bogatyr"]
[Black "chess94cu"]
[Result "0-1"]
[WhiteElo "2366"]
[BlackElo "2589"]
[TimeControl "180+1"]
[EndTime "10:31:05 PDT"]
[Termination "chess94cu won on time"]

1. e4 {[%clk 0:03:00.9]} 1... e5 {[%clk 0:02:58.4]} 2. Nf3 {[%clk 0:03:00.7]}
2... Nc6 {[%clk 0:02:59]} 3. Bb5 {[%clk 0:03:01]} 3... a6 {[%clk 0:02:58.7]} 4.
Bxc6 {[%clk 0:03:01.2]} 4... dxc6 {[%clk 0:02:58.8]} 5. O-O {[%clk 0:03:02.1]}
5... f6 {[%clk 0:02:54.8]} 6. d4 {[%clk 0:03:00.1]} 6... exd4 {[%clk 0:02:55.7]}
7. e5 {[%clk 0:03:00.3]} 7... fxe5 {[%clk 0:02:41.9]} 8. Re1 {[%clk 0:02:59.7]}
8... Nf6 {[%clk 0:02:39.7]} 9. Nxe5 {[%clk 0:02:37.6]} 9... Be7 {[%clk
0:02:18.7]} 10. Nf3 {[%clk 0:02:24.6]} 10... O-O {[%clk 0:02:17.3]} 11. Qxd4
{[%clk 0:02:20.6]} 11... Qxd4 {[%clk 0:02:11.3]} 12. Nxd4 {[%clk 0:02:21.5]}
12... Bd6 {[%clk 0:02:11.9]} 13. h3 {[%clk 0:01:55.9]} 13... Bd7 {[%clk
0:02:05.8]} 14. Nc3 {[%clk 0:01:52.4]} 14... Rae8 {[%clk 0:02:02.1]} 15. Bd2
{[%clk 0:01:45]} 15... c5 {[%clk 0:01:38.3]} 16. Nb3 {[%clk 0:01:26.1]} 16... b6
{[%clk 0:01:38.1]} 17. Rxe8 {[%clk 0:01:24.8]} 17... Rxe8 {[%clk 0:01:37.7]} 18.
Re1 {[%clk 0:01:25]} 18... Rxe1+ {[%clk 0:01:37.2]} 19. Bxe1 {[%clk 0:01:25.9]}
19... Be5 {[%clk 0:01:27.9]} 20. Nc1 {[%clk 0:01:15.9]} 20... c4 {[%clk
0:01:25.9]} 21. N1e2 {[%clk 0:01:09.5]} 21... b5 {[%clk 0:01:17.1]} 22. f4
{[%clk 0:01:09.1]} 22... Bd6 {[%clk 0:01:17.1]} 23. a3 {[%clk 0:00:57.9]} 23...
h5 {[%clk 0:01:15.3]} 24. Bf2 {[%clk 0:00:52.1]} 24... c5 {[%clk 0:01:12.4]} 25.
Be3 {[%clk 0:00:43.4]} 25... Bf5 {[%clk 0:01:11.1]} 26. b3 {[%clk 0:00:22.5]}
26... Bxc2 {[%clk 0:00:33.3]} 27. bxc4 {[%clk 0:00:21.3]} 27... b4 {[%clk
0:00:32.9]} 28. axb4 {[%clk 0:00:14.7]} 28... cxb4 {[%clk 0:00:33.8]} 29. c5
{[%clk 0:00:12.6]} 29... Bc7 {[%clk 0:00:33.1]} 30. Na2 {[%clk 0:00:07.6]} 30...
b3 {[%clk 0:00:27]} 31. Nac3 {[%clk 0:00:06.3]} 31... b2 {[%clk 0:00:26.9]} 32.
Kf2 {[%clk 0:00:04.5]} 32... Kf7 {[%clk 0:00:22.6]} 33. Kf3 {[%clk 0:00:03.4]}
33... Ke6 {[%clk 0:00:20.1]} 34. Nd4+ {[%clk 0:00:02.7]} 34... Kd7 {[%clk
0:00:16]} 35. Nxc2 {[%clk 0:00:03.6]} 35... Nd5 {[%clk 0:00:16.4]} 36. Bd4
{[%clk 0:00:02.8]} 36... Nxc3 {[%clk 0:00:15.6]} 37. Na3 {[%clk 0:00:01.7]}
37... Na4 {[%clk 0:00:10.1]} 38. Nb1 {[%clk 0:00:01.3]} 38... g6 {[%clk
0:00:09.6]} 39. Ke4 {[%clk 0:00:01.5]} 39... Ke6 {[%clk 0:00:09.7]} 40. g3
{[%clk 0:00:01.7]} 40... Bd8 {[%clk 0:00:06.9]} 41. Ke3 {[%clk 0:00:01.6]} 41...
Kd5 {[%clk 0:00:06.9]} 42. Kd3 {[%clk 0:00:01.1]} 42... Be7 {[%clk 0:00:06.4]}
43. Bg7 {[%clk 0:00:01.5]} 43... Nxc5+ {[%clk 0:00:05.4]} 44. Kc2 {[%clk
0:00:02.4]} 44... Ne4 {[%clk 0:00:04.7]} 45. Bxb2 {[%clk 0:00:02]} 45... Nxg3
{[%clk 0:00:05]} 46. Nc3+ {[%clk 0:00:02.3]} 46... Kc4 {[%clk 0:00:05.2]} 47.
Nd1 {[%clk 0:00:01.3]} 47... Bc5 {[%clk 0:00:04.4]} 48. Kd2 {[%clk 0:00:02.2]}
48... Ne4+ {[%clk 0:00:02.2]} 49. Kc2 {[%clk 0:00:01.7]} 49... a5 {[%clk
0:00:03.1]} 50. Bg7 {[%clk 0:00:02.2]} 50... a4 {[%clk 0:00:03.2]} 51. Nb2+
{[%clk 0:00:03.1]} 51... Kb5 {[%clk 0:00:03.1]} 52. Nd3 {[%clk 0:00:04]} 52...
Bd6 {[%clk 0:00:03.2]} 53. Kb1 {[%clk 0:00:04.6]} 53... Kc4 {[%clk 0:00:02.6]}
54. Ne5+ {[%clk 0:00:04.4]} 54... Bxe5 {[%clk 0:00:02.3]} 55. fxe5 {[%clk
0:00:05]} 55... Kd5 {[%clk 0:00:03.2]} 56. Bh8 {[%clk 0:00:04.1]} 56... Nf2
{[%clk 0:00:03.4]} 57. h4 {[%clk 0:00:03.2]} 57... Ng4 {[%clk 0:00:03.6]} 58.
Ka2 {[%clk 0:00:02.3]} 58... Nxe5 {[%clk 0:00:03.8]} 59. Ka3 {[%clk 0:00:01.7]}
59... Ke6 {[%clk 0:00:04.4]} 0-1

[Event "*** SCC Grand Prix: Titled Tuesday Blitz"]
[Site "Chess.com"]
[Date "2020.08.11"]
[Round "3"]
[White "chess_rehab"]
[Black "j2806"]
[Result "1/2-1/2"]
[WhiteElo "2296"]
[BlackElo "2077"]
[TimeControl "180+1"]
[EndTime "10:31:05 PDT"]
[Termination "Game drawn by repetition"]

1. e4 {[%clk 0:03:00.9]} 1... c5 {[%clk 0:02:59.8]} 2. Nf3 {[%clk 0:03:00.5]}
2... d6 {[%clk 0:03:00.3]} 3. d4 {[%clk 0:03:00.6]} 3... cxd4 {[%clk 0:03:00.9]}
4. Nxd4 {[%clk 0:03:01.5]} 4... Nf6 {[%clk 0:03:01.5]} 5. Nc3 {[%clk 0:03:01.7]}
5... a6 {[%clk 0:03:01.5]} 6. Bc4 {[%clk 0:03:01.1]} 6... e5 {[%clk 0:03:01.9]}
7. Nf5 {[%clk 0:02:40.1]} 7... Nxe4 {[%clk 0:02:49.8]} 8. Qd5 {[%clk 0:02:09.3]}
8... Qf6 {[%clk 0:02:21.8]} 9. Nxe4 {[%clk 0:01:35.4]} 9... Qxf5 {[%clk
0:02:14.8]} 10. O-O {[%clk 0:00:37.1]} 10... Qe6 {[%clk 0:01:43.1]} 11. Ng5
{[%clk 0:00:37]} 11... Qxd5 {[%clk 0:01:37.8]} 12. Bxd5 {[%clk 0:00:37.9]} 12...
h6 {[%clk 0:01:23.5]} 13. Nxf7 {[%clk 0:00:37.3]} 13... Rh7 {[%clk 0:01:21.7]}
14. Be4 {[%clk 0:00:34.8]} 14... Kxf7 {[%clk 0:01:21.4]} 15. Bxh7 {[%clk
0:00:34.4]} 15... g6 {[%clk 0:01:21.7]} 16. f4 {[%clk 0:00:32.4]} 16... Kg7
{[%clk 0:01:21.3]} 17. fxe5 {[%clk 0:00:32.6]} 17... Bf5 {[%clk 0:01:10.5]} 18.
Bd2 {[%clk 0:00:23.2]} 18... dxe5 {[%clk 0:01:07.2]} 19. Bc3 {[%clk 0:00:22.9]}
19... Nc6 {[%clk 0:01:07.3]} 20. Rad1 {[%clk 0:00:21.8]} 20... Kxh7 {[%clk
0:01:05.3]} 21. g4 {[%clk 0:00:21.7]} 21... Bc5+ {[%clk 0:01:01.2]} 22. Kg2
{[%clk 0:00:19.7]} 22... Bxg4 {[%clk 0:00:57.2]} 23. Kg3 {[%clk 0:00:19.7]}
23... Bf5 {[%clk 0:00:56.2]} 24. h4 {[%clk 0:00:17.1]} 24... Nd4 {[%clk
0:00:54.9]} 25. Bxd4 {[%clk 0:00:16.7]} 25... exd4 {[%clk 0:00:52.8]} 26. c3
{[%clk 0:00:16.5]} 26... dxc3 {[%clk 0:00:52.1]} 27. bxc3 {[%clk 0:00:16]} 27...
Re8 {[%clk 0:00:52.1]} 28. Rfe1 {[%clk 0:00:15.2]} 28... Rc8 {[%clk 0:00:46.5]}
29. Rd5 {[%clk 0:00:12.2]} 29... Bf8 {[%clk 0:00:40.9]} 30. h5 {[%clk
0:00:12.5]} 30... Rxc3+ {[%clk 0:00:40.2]} 31. Kg2 {[%clk 0:00:12.6]} 31... Rc2+
{[%clk 0:00:39.7]} 32. Kh1 {[%clk 0:00:10.2]} 32... Rxa2 {[%clk 0:00:35.4]} 33.
hxg6+ {[%clk 0:00:09.8]} 33... Bxg6 {[%clk 0:00:32.3]} 34. Rd7+ {[%clk
0:00:08.6]} 34... Kg8 {[%clk 0:00:26.8]} 35. Rg1 {[%clk 0:00:08.1]} 35... Ra3
{[%clk 0:00:16.1]} 36. Rxg6+ {[%clk 0:00:08.1]} 36... Kh8 {[%clk 0:00:16.7]} 37.
Rd8 {[%clk 0:00:08.2]} 37... Rf3 {[%clk 0:00:16.2]} 38. Kg2 {[%clk 0:00:07.7]}
38... Rf7 {[%clk 0:00:16.3]} 39. Rxh6+ {[%clk 0:00:08]} 39... Kg7 {[%clk
0:00:15.7]} 40. Rh3 {[%clk 0:00:07.3]} 40... Be7 {[%clk 0:00:15.1]} 41. Rg3+
{[%clk 0:00:07.6]} 41... Kf6 {[%clk 0:00:14.3]} 42. Rd7 {[%clk 0:00:08.5]} 42...
Ke6 {[%clk 0:00:14.3]} 43. Rgd3 {[%clk 0:00:08.3]} 43... Bf6 {[%clk 0:00:13.6]}
44. Rxf7 {[%clk 0:00:07.8]} 44... Kxf7 {[%clk 0:00:14.2]} 45. Kf3 {[%clk
0:00:08.3]} 45... b5 {[%clk 0:00:14.1]} 46. Ke4 {[%clk 0:00:08.8]} 46... a5
{[%clk 0:00:14.4]} 47. Rd5 {[%clk 0:00:08.1]} 47... Bc3 {[%clk 0:00:13.2]} 48.
Rxb5 {[%clk 0:00:07.8]} 48... Bb4 {[%clk 0:00:14.1]} 49. Kd3 {[%clk 0:00:08]}
49... Ke6 {[%clk 0:00:14.5]} 50. Kc4 {[%clk 0:00:08.4]} 50... Kd6 {[%clk
0:00:15.3]} 51. Rb6+ {[%clk 0:00:08.5]} 51... Kc7 {[%clk 0:00:14.9]} 52. Rh6
{[%clk 0:00:08.2]} 52... Kb7 {[%clk 0:00:15.1]} 53. Rg6 {[%clk 0:00:08.7]} 53...
Kc7 {[%clk 0:00:15.4]} 54. Kd5 {[%clk 0:00:08.8]} 54... Kd7 {[%clk 0:00:16.2]}
55. Rg7+ {[%clk 0:00:08.7]} 55... Be7 {[%clk 0:00:15.9]} 56. Kc4 {[%clk
0:00:08]} 56... Ke6 {[%clk 0:00:14.9]} 57. Kb5 {[%clk 0:00:08.4]} 57... Bb4
{[%clk 0:00:14.1]} 58. Rg6+ {[%clk 0:00:08.5]} 58... Ke5 {[%clk 0:00:14.4]} 59.
Rg2 {[%clk 0:00:08.9]} 59... Kd4 {[%clk 0:00:14.8]} 60. Rc2 {[%clk 0:00:09.2]}
60... Kd3 {[%clk 0:00:14.9]} 61. Rc8 {[%clk 0:00:09.7]} 61... Kd2 {[%clk
0:00:15.1]} 62. Rc6 {[%clk 0:00:09.5]} 62... Kd3 {[%clk 0:00:15.4]} 63. Ka4
{[%clk 0:00:09.9]} 63... Kd4 {[%clk 0:00:15.4]} 64. Rc8 {[%clk 0:00:10.4]} 64...
Kd5 {[%clk 0:00:15.7]} 65. Rg8 {[%clk 0:00:10.6]} 65... Kd6 {[%clk 0:00:16]} 66.
Rg4 {[%clk 0:00:11.1]} 66... Ke5 {[%clk 0:00:16.4]} 67. Rg2 {[%clk 0:00:11.4]}
67... Ke4 {[%clk 0:00:16.8]} 68. Rc2 {[%clk 0:00:11.6]} 68... Kd3 {[%clk
0:00:17.2]} 69. Rc8 {[%clk 0:00:11.9]} 69... Kd4 {[%clk 0:00:17.7]} 70. Kb5
{[%clk 0:00:12.3]} 70... Ke4 {[%clk 0:00:17.8]} 71. Rd8 {[%clk 0:00:12.8]} 71...
Ke5 {[%clk 0:00:17.6]} 72. Kc4 {[%clk 0:00:12.9]} 72... Ke6 {[%clk 0:00:17.2]}
73. Rd1 {[%clk 0:00:13]} 73... Ke5 {[%clk 0:00:17.3]} 74. Rd3 {[%clk 0:00:12.8]}
74... Ke4 {[%clk 0:00:17.2]} 75. Rd7 {[%clk 0:00:13]} 75... Ke5 {[%clk
0:00:17.9]} 76. Rd8 {[%clk 0:00:12.9]} 76... Ke6 {[%clk 0:00:17.5]} 77. Re8+
{[%clk 0:00:12.9]} 77... Kd7 {[%clk 0:00:17.3]} 78. Re4 {[%clk 0:00:13.4]} 78...
Kd6 {[%clk 0:00:17.1]} 79. Rg4 {[%clk 0:00:13.7]} 79... Ke6 {[%clk 0:00:17.1]}
80. Rg6+ {[%clk 0:00:13.8]} 80... Kf5 {[%clk 0:00:17.2]} 81. Rc6 {[%clk
0:00:14.1]} 81... Ke4 {[%clk 0:00:17.2]} 82. Kb5 {[%clk 0:00:14.5]} 82... Kd4
{[%clk 0:00:17.1]} 83. Rc4+ {[%clk 0:00:14.6]} 83... Kd3 {[%clk 0:00:17.2]} 84.
Rg4 {[%clk 0:00:14.5]} 84... Ke3 {[%clk 0:00:17.2]} 85. Rg8 {[%clk 0:00:14]}
85... Kd4 {[%clk 0:00:17.1]} 86. Rd8+ {[%clk 0:00:13.2]} 86... Ke5 {[%clk
0:00:17.1]} 87. Kc4 {[%clk 0:00:12.5]} 1/2-1/2

[Event "*** SCC Grand Prix: Titled Tuesday Blitz"]
[Site "Chess.com"]
[Date "2020.08.11"]
[Round "3"]
[White "GigaQuparadze"]
[Black "QuintilianoR"]
[Result "0-1"]
[WhiteElo "2916"]
[BlackElo "2649"]
[TimeControl "180+1"]
[EndTime "10:31:11 PDT"]
[Termination "QuintilianoR won by resignation"]

1. e4 {[%clk 0:03:00.9]} 1... e5 {[%clk 0:02:59.1]} 2. Nf3 {[%clk 0:03:00.2]}
2... Nc6 {[%clk 0:02:59.1]} 3. Bb5 {[%clk 0:03:00.7]} 3... a6 {[%clk 0:02:58.5]}
4. Ba4 {[%clk 0:03:00.1]} 4... d6 {[%clk 0:02:58.3]} 5. d4 {[%clk 0:02:59]} 5...
Bd7 {[%clk 0:02:51.1]} 6. Bxc6 {[%clk 0:02:56.9]} 6... Bxc6 {[%clk 0:02:50.1]}
7. Nc3 {[%clk 0:02:57.1]} 7... Nf6 {[%clk 0:02:46.2]} 8. Qe2 {[%clk 0:02:56.5]}
8... exd4 {[%clk 0:02:38]} 9. Nxd4 {[%clk 0:02:57.4]} 9... Bd7 {[%clk
0:02:36.6]} 10. O-O {[%clk 0:02:55.2]} 10... Be7 {[%clk 0:02:36]} 11. Qf3 {[%clk
0:02:55.3]} 11... O-O {[%clk 0:02:34.4]} 12. Nf5 {[%clk 0:02:55.2]} 12... Bxf5
{[%clk 0:02:22.7]} 13. Qxf5 {[%clk 0:02:56.1]} 13... Re8 {[%clk 0:02:22]} 14.
Rd1 {[%clk 0:02:55.6]} 14... Qd7 {[%clk 0:02:19.7]} 15. Qf3 {[%clk 0:02:53]}
15... Qc6 {[%clk 0:02:17.6]} 16. Bg5 {[%clk 0:02:50.8]} 16... h6 {[%clk
0:02:07.8]} 17. Be3 {[%clk 0:02:50.1]} 17... Rad8 {[%clk 0:02:01.2]} 18. Bd4
{[%clk 0:02:49.2]} 18... Qd7 {[%clk 0:01:29.6]} 19. h3 {[%clk 0:02:43.6]} 19...
Nh7 {[%clk 0:01:13.2]} 20. Nd5 {[%clk 0:02:42.4]} 20... c6 {[%clk 0:01:01.1]}
21. Nxe7+ {[%clk 0:02:26.4]} 21... Qxe7 {[%clk 0:01:00.3]} 22. Qg3 {[%clk
0:02:26.5]} 22... Ng5 {[%clk 0:00:51.4]} 23. f3 {[%clk 0:02:25.1]} 23... Rd7
{[%clk 0:00:47.6]} 24. c4 {[%clk 0:02:22.6]} 24... Ne6 {[%clk 0:00:42.7]} 25.
Bc3 {[%clk 0:02:22.2]} 25... b5 {[%clk 0:00:33.8]} 26. cxb5 {[%clk 0:02:17.9]}
26... axb5 {[%clk 0:00:34.7]} 27. Rd2 {[%clk 0:02:16.9]} 27... d5 {[%clk
0:00:32.5]} 28. exd5 {[%clk 0:02:13.1]} 28... cxd5 {[%clk 0:00:33.4]} 29. Re1
{[%clk 0:02:12.5]} 29... Qg5 {[%clk 0:00:25.8]} 30. Qxg5 {[%clk 0:01:58.9]}
30... hxg5 {[%clk 0:00:26.7]} 31. Re5 {[%clk 0:01:58.8]} 31... Red8 {[%clk
0:00:21.1]} 32. a3 {[%clk 0:01:56.7]} 32... Rd6 {[%clk 0:00:18.7]} 33. Bb4
{[%clk 0:01:55]} 33... R6d7 {[%clk 0:00:18.8]} 34. Bc3 {[%clk 0:01:50.8]} 34...
d4 {[%clk 0:00:19.1]} 35. Ba5 {[%clk 0:01:49.8]} 35... Rd5 {[%clk 0:00:18.7]}
36. Re4 {[%clk 0:01:31.5]} 36... R8d7 {[%clk 0:00:17.7]} 37. Bb4 {[%clk
0:01:28.1]} 37... Kh7 {[%clk 0:00:15.1]} 38. Kf2 {[%clk 0:01:27.9]} 38... Kg6
{[%clk 0:00:15.2]} 39. h4 {[%clk 0:01:28.1]} 39... gxh4 {[%clk 0:00:14.7]} 40.
Rxh4 {[%clk 0:01:29]} 40... f6 {[%clk 0:00:14.9]} 41. Rg4+ {[%clk 0:01:29]}
41... Kf7 {[%clk 0:00:15]} 42. Re4 {[%clk 0:01:29.2]} 42... d3 {[%clk
0:00:15.1]} 43. Ke3 {[%clk 0:01:27.9]} 43... g5 {[%clk 0:00:14.6]} 44. Kf2
{[%clk 0:01:23.5]} 44... Ng7 {[%clk 0:00:13.9]} 45. Re1 {[%clk 0:01:16.2]} 45...
Nf5 {[%clk 0:00:14]} 46. Red1 {[%clk 0:01:15.9]} 46... Kg6 {[%clk 0:00:10.4]}
47. Rc1 {[%clk 0:01:16.1]} 47... Kf7 {[%clk 0:00:10]} 48. Rc6 {[%clk 0:01:15.2]}
48... Kg6 {[%clk 0:00:09.3]} 49. Bc3 {[%clk 0:01:15.5]} 49... R7d6 {[%clk
0:00:09.7]} 50. Rc7 {[%clk 0:01:12.3]} 50... Rd7 {[%clk 0:00:09.2]} 51. Rc8
{[%clk 0:01:12.2]} 51... Rd8 {[%clk 0:00:09.3]} 52. Rxd8 {[%clk 0:01:10.8]}
52... Rxd8 {[%clk 0:00:08.5]} 53. b3 {[%clk 0:01:10.8]} 53... Rd5 {[%clk
0:00:07.3]} 54. a4 {[%clk 0:01:10.8]} 54... bxa4 {[%clk 0:00:08.2]} 55. bxa4
{[%clk 0:01:11.7]} 55... Nd6 {[%clk 0:00:08.4]} 56. Ke3 {[%clk 0:00:36.6]} 56...
Nc4+ {[%clk 0:00:06.3]} 57. Ke4 {[%clk 0:00:36.8]} 57... Rd7 {[%clk 0:00:06.1]}
58. g4 {[%clk 0:00:30.8]} 58... Nxd2+ {[%clk 0:00:05.4]} 59. Bxd2 {[%clk
0:00:31.7]} 59... Kf7 {[%clk 0:00:05.9]} 60. a5 {[%clk 0:00:31.8]} 60... Ke6
{[%clk 0:00:06.2]} 61. Ke3 {[%clk 0:00:30.2]} 61... f5 {[%clk 0:00:04.2]} 62.
Bc3 {[%clk 0:00:29.2]} 62... f4+ {[%clk 0:00:04.1]} 63. Kd2 {[%clk 0:00:29.5]}
63... Rd5 {[%clk 0:00:03.9]} 64. Bb4 {[%clk 0:00:27.6]} 64... Kd7 {[%clk
0:00:03.7]} 65. a6 {[%clk 0:00:26.9]} 65... Kc6 {[%clk 0:00:03.7]} 66. Kc3
{[%clk 0:00:14.4]} 66... Kb6 {[%clk 0:00:03.8]} 67. Kc4 {[%clk 0:00:14.6]} 67...
d2 {[%clk 0:00:03.5]} 68. Kxd5 {[%clk 0:00:14.6]} 68... d1=Q+ {[%clk 0:00:02.8]}
69. Ke4 {[%clk 0:00:14.7]} 69... Qe2+ {[%clk 0:00:03.4]} 70. Kf5 {[%clk
0:00:15]} 70... Qxf3 {[%clk 0:00:04.3]} 71. Kxg5 {[%clk 0:00:15]} 71... Qe3
{[%clk 0:00:05.2]} 72. a7 {[%clk 0:00:13.4]} 72... f3+ {[%clk 0:00:04.9]} 73.
Kg6 {[%clk 0:00:13.4]} 73... Kxa7 {[%clk 0:00:05.8]} 0-1

[Event "*** SCC Grand Prix: Titled Tuesday Blitz"]
[Site "Chess.com"]
[Date "2020.08.11"]
[Round "3"]
[White "ValeriyGrinev"]
[Black "TimofeevAr"]
[Result "0-1"]
[WhiteElo "2639"]
[BlackElo "2859"]
[TimeControl "180+1"]
[EndTime "10:31:20 PDT"]
[Termination "TimofeevAr won by resignation"]

1. d4 {[%clk 0:03:00.9]} 1... Nf6 {[%clk 0:02:59.5]} 2. c4 {[%clk 0:03:01]} 2...
g6 {[%clk 0:02:59.6]} 3. Nc3 {[%clk 0:03:01.3]} 3... d5 {[%clk 0:02:59.9]} 4.
Nf3 {[%clk 0:03:01.9]} 4... Bg7 {[%clk 0:02:59.7]} 5. cxd5 {[%clk 0:03:02.5]}
5... Nxd5 {[%clk 0:02:59.7]} 6. Bd2 {[%clk 0:03:03.4]} 6... Nb6 {[%clk
0:02:57.5]} 7. Bg5 {[%clk 0:03:02.1]} 7... h6 {[%clk 0:02:56.9]} 8. Bf4 {[%clk
0:03:01.9]} 8... O-O {[%clk 0:02:52]} 9. Rc1 {[%clk 0:02:57.1]} 9... Nc6 {[%clk
0:02:45.9]} 10. e3 {[%clk 0:02:56.3]} 10... Bg4 {[%clk 0:02:43.7]} 11. Be2
{[%clk 0:02:56]} 11... Nb4 {[%clk 0:02:32.6]} 12. O-O {[%clk 0:02:48.9]} 12...
c6 {[%clk 0:02:32.4]} 13. h3 {[%clk 0:02:40.3]} 13... Bxf3 {[%clk 0:02:30]} 14.
Bxf3 {[%clk 0:02:41.2]} 14... N4d5 {[%clk 0:02:28.1]} 15. Bg3 {[%clk 0:02:40]}
15... e6 {[%clk 0:02:24.4]} 16. Ne4 {[%clk 0:02:33.1]} 16... Nd7 {[%clk
0:02:13.4]} 17. Nd6 {[%clk 0:02:28.5]} 17... Qb6 {[%clk 0:02:13]} 18. Nc4 {[%clk
0:02:22.8]} 18... Qa6 {[%clk 0:02:05.1]} 19. a3 {[%clk 0:02:23.2]} 19... Rfd8
{[%clk 0:02:00.1]} 20. Qc2 {[%clk 0:02:17.9]} 20... c5 {[%clk 0:01:53.4]} 21.
dxc5 {[%clk 0:02:10.4]} 21... Nxc5 {[%clk 0:01:53.2]} 22. b4 {[%clk 0:02:10.9]}
22... Nd7 {[%clk 0:01:50.2]} 23. Qb3 {[%clk 0:02:04.7]} 23... N7b6 {[%clk
0:01:39.1]} 24. Nd6 {[%clk 0:01:53.9]} 24... Rd7 {[%clk 0:01:32.2]} 25. Rfe1
{[%clk 0:01:47.6]} 25... Qa4 {[%clk 0:01:29.5]} 26. Qd3 {[%clk 0:01:18.9]} 26...
Rad8 {[%clk 0:01:07.4]} 27. Bd1 {[%clk 0:01:19]} 27... Qa6 {[%clk 0:01:07.6]}
28. Qxa6 {[%clk 0:01:18.8]} 28... bxa6 {[%clk 0:01:07.6]} 29. Ne4 {[%clk
0:01:19.4]} 29... Re7 {[%clk 0:00:56.3]} 30. Rc2 {[%clk 0:00:57.9]} 30... Rc8
{[%clk 0:00:45.4]} 31. Rxc8+ {[%clk 0:00:54.9]} 31... Nxc8 {[%clk 0:00:45.6]}
32. Nc5 {[%clk 0:00:55.5]} 32... Bb2 {[%clk 0:00:44.5]} 33. Nd3 {[%clk
0:00:48.2]} 33... Bxa3 {[%clk 0:00:41.1]} 34. Ba4 {[%clk 0:00:48.6]} 34... Nxb4
{[%clk 0:00:38.6]} 35. Ra1 {[%clk 0:00:44.1]} 35... Nxd3 {[%clk 0:00:38.2]} 36.
Rxa3 {[%clk 0:00:44.6]} 36... Nb4 {[%clk 0:00:33.6]} 37. Rc3 {[%clk 0:00:44.2]}
37... Nb6 {[%clk 0:00:31.9]} 38. Bd6 {[%clk 0:00:42.9]} 38... Rb7 {[%clk
0:00:30.1]} 39. Bd1 {[%clk 0:00:33.6]} 39... a5 {[%clk 0:00:30]} 40. Bf3 {[%clk
0:00:31]} 40... Rd7 {[%clk 0:00:29.6]} 41. Be5 {[%clk 0:00:30.9]} 41... N4d5
{[%clk 0:00:22.4]} 42. Rc5 {[%clk 0:00:26.7]} 42... f6 {[%clk 0:00:22.3]} 43.
Bd4 {[%clk 0:00:26.3]} 43... a4 {[%clk 0:00:22.5]} 44. Ra5 {[%clk 0:00:26.8]}
44... e5 {[%clk 0:00:22.5]} 45. Bc5 {[%clk 0:00:22.5]} 45... Kg7 {[%clk
0:00:22.2]} 46. e4 {[%clk 0:00:22.2]} 46... Nc3 {[%clk 0:00:22.1]} 47. Bb4
{[%clk 0:00:21.5]} 47... Na2 {[%clk 0:00:22]} 48. Bc5 {[%clk 0:00:21.2]} 48...
Nc1 {[%clk 0:00:22.2]} 49. Bxb6 {[%clk 0:00:21.2]} 49... axb6 {[%clk 0:00:22.6]}
50. Rxa4 {[%clk 0:00:22.1]} 50... Nd3 {[%clk 0:00:22.9]} 51. Ra6 {[%clk
0:00:21.8]} 51... Rb7 {[%clk 0:00:22.2]} 52. Be2 {[%clk 0:00:22.3]} 52... Nc5
{[%clk 0:00:22.5]} 53. Ra8 {[%clk 0:00:22]} 53... Nxe4 {[%clk 0:00:22.5]} 54.
Bf3 {[%clk 0:00:22.6]} 54... f5 {[%clk 0:00:22.9]} 55. g4 {[%clk 0:00:21.7]}
55... b5 {[%clk 0:00:22.8]} 56. gxf5 {[%clk 0:00:21.8]} 56... gxf5 {[%clk
0:00:23.2]} 57. Re8 {[%clk 0:00:21.8]} 57... Kf6 {[%clk 0:00:22.6]} 58. Rf8+
{[%clk 0:00:22.2]} 58... Ke6 {[%clk 0:00:22.4]} 59. Re8+ {[%clk 0:00:21.4]}
59... Kd5 {[%clk 0:00:22.3]} 60. Rd8+ {[%clk 0:00:21.4]} 60... Kc4 {[%clk
0:00:21.9]} 61. Rf8 {[%clk 0:00:22.1]} 61... b4 {[%clk 0:00:18.7]} 62. Rxf5
{[%clk 0:00:21.4]} 62... Kd4 {[%clk 0:00:19]} 63. Rh5 {[%clk 0:00:20.3]} 63...
Rg7+ {[%clk 0:00:17.7]} 64. Kh2 {[%clk 0:00:18.8]} 64... Nd2 {[%clk 0:00:17.7]}
65. Rh4+ {[%clk 0:00:19]} 65... e4 {[%clk 0:00:18.1]} 66. Bxe4 {[%clk
0:00:18.3]} 66... Nxe4 {[%clk 0:00:17.8]} 67. f3 {[%clk 0:00:18.9]} 67... b3
{[%clk 0:00:18]} 68. Rxe4+ {[%clk 0:00:18.6]} 68... Kc3 {[%clk 0:00:18.4]} 69.
Re6 {[%clk 0:00:18.5]} 69... Rb7 {[%clk 0:00:15.9]} 70. Rc6+ {[%clk 0:00:19.4]}
70... Kd3 {[%clk 0:00:15.9]} 71. Rd6+ {[%clk 0:00:19.4]} 71... Ke3 {[%clk
0:00:16.2]} 72. Re6+ {[%clk 0:00:17.8]} 72... Kxf3 {[%clk 0:00:15.9]} 73. Rf6+
{[%clk 0:00:17.1]} 73... Ke4 {[%clk 0:00:16.1]} 74. Rxh6 {[%clk 0:00:17.5]}
74... b2 {[%clk 0:00:16]} 75. Re6+ {[%clk 0:00:18]} 75... Kd3 {[%clk 0:00:16.2]}
76. Rd6+ {[%clk 0:00:17.6]} 76... Kc2 {[%clk 0:00:15.7]} 77. Rc6+ {[%clk
0:00:17.9]} 77... Kb3 {[%clk 0:00:16]} 78. Rf6 {[%clk 0:00:17.3]} 78... b1=Q
{[%clk 0:00:16.2]} 79. Rf3+ {[%clk 0:00:18.2]} 79... Kc4 {[%clk 0:00:16.2]} 80.
Rf4+ {[%clk 0:00:18.5]} 80... Kd5 {[%clk 0:00:16.5]} 81. Rg4 {[%clk 0:00:19.4]}
81... Rb2+ {[%clk 0:00:15.4]} 82. Kg3 {[%clk 0:00:20.3]} 82... Qe1+ {[%clk
0:00:15.5]} 83. Kf4 {[%clk 0:00:19]} 83... Rb4+ {[%clk 0:00:15.8]} 84. Kg5
{[%clk 0:00:19.3]} 84... Rxg4+ {[%clk 0:00:16.4]} 85. hxg4 {[%clk 0:00:20.2]}
85... Ke6 {[%clk 0:00:16.8]} 86. Kg6 {[%clk 0:00:20.3]} 86... Qe5 {[%clk
0:00:17.2]} 87. g5 {[%clk 0:00:21.2]} 87... Qf5+ {[%clk 0:00:17.3]} 88. Kh6
{[%clk 0:00:21.7]} 88... Kf7 {[%clk 0:00:17.6]} 0-1